Cogmind - Beta 17.1 @@@ ROGUE MODE // 2026.08.31 @ 00:46:50 Player: Somberlain Result: Self-destructed Performance ------------- Evolutions (2) 1000 Regions Visited (3) 600 Robots Destroyed (21) 105 Value Destroyed (648) 648 Prototype IDs (0) 0 Alien Tech Used (0) 0 Bonus (0) 0 TOTAL SCORE: 2353 Bonus ------- None Cogmind --------- Core Integrity 417/550 Matter 179/300 Energy 100/100 System Corruption 0% Temperature Cool (0) Movement Walking (120) Location -8/Materials Parts ------- > --- POWER (1) -------- (None) > --- PROPULSION (3) --- Carbon-fiber Leg > --- UTILITY (4) ------ (None) > --- WEAPON (3) ------- Assault Rifle Advanced Assault Cannon > --- INVENTORY (5) ---- Light Ion Engine Light Nuclear Core Component Analysis Suite Peak State ------------ > --- POWER ------------ Ion Engine > --- PROPULSION ------- VTOL Module VTOL Module VTOL Module > --- UTILITY ---------- Improved Heat Sink > --- WEAPON ----------- Medium Laser Assault Rifle Advanced Assault Cannon > --- INVENTORY -------- Light Ion Engine Improved Aluminum Leg Improved Hover Unit Improved Hover Unit Component Analysis Suite [Rating: 17] Favorites ----------- Power Ion Engine Engine Ion Engine Propulsion Aluminum Leg Leg Aluminum Leg Hover Unit Improved Hover Unit Flight Unit VTOL Module Utility Small Storage Unit Device Improved Heat Sink Storage Small Storage Unit Weapon Medium Laser Energy Gun Medium Laser Ballistic Gun Assault Rifle Ballistic Cannon Advanced Assault Cannon Build | -11 -10 -9 -8 ------- Run | Yrd Mat Mat Mat Slots Evolved 4 | . . 2 2 Power . | . . . . Propulsion 1 | . . . 1 Utility 2 | . . 2 . Weapon 1 | . . . 1 Parts Attached 21 | 6 4 4 7 Power 3 | 1 1 1 . Engine 3 | 1 1 1 . Core . | . . . . Reactor . | . . . . Propulsion 11 | 2 1 2 6 Treads . | . . . . Leg 6 | 2 1 2 1 Wheel . | . . . . Hover 2 | . . . 2 Flight 3 | . . . 3 Utility 2 | 1 1 . . Device 1 | . 1 . . Storage 1 | 1 . . . Processor . | . . . . Hackware . | . . . . Protection . | . . . . Artifact . | . . . . Weapon 5 | 2 1 1 1 Energy Gun 2 | 1 1 . . Energy Cannon . | . . . . Ballistic Gun 2 | 1 . 1 . Ballistic Cannon 1 | . . . 1 Launcher . | . . . . Special Weapon . | . . . . Impact Weapon . | . . . . Slashing Weapon . | . . . . Piercing Weapon . | . . . . Special Melee Weapon . | . . . . Unidentified Prototypes . | . . . . Parts Lost 5 | . . 1 4 Power 2 | . . 1 1 Propulsion 2 | . . . 2 Utility 1 | . . . 1 Weapon . | . . . . Highest Loss Streak 2 | . . 1 2 To Critical Strikes . | . . . . Average Backups 3 | . 2 5 3 Power 1 | . 1 1 1 Propulsion 2 | . 1 2 1 Utility . | . . . . Weapon . | . . . . Tool/Special . | . . . . Unused Backups 7 | . . 2 5 Power 1 | . . . 1 Propulsion 5 | . . 2 3 Utility 1 | . . . 1 Weapon . | . . . . Tool/Special . | . . . . Average Slot Usage (%) 76 | . 90 77 49 Engine 11 | . 14 11 7 Leg 21 | . 28 22 7 Hover 1 | . . . 6 Device 8 | . 5 11 4 Storage 10 | . 14 11 3 Energy Gun 16 | . 17 20 3 Ballistic Gun 5 | . 10 1 9 Peak Build Rating 17 | 6 10 11 17 Average Rating 9 | 4 7 10 10 On Entrance 6 | . 6 10 10 Avg Prop Armor Cover (%) . | . . . . Naked Turns . | . . . . Heaviest Build 16 | 12 16 16 15 Greatest Support 28 | 20 20 23 28 Greatest Overweight (x) 4 | . . . 4 Average Overweight (x) . | . . . . Largest Inventory Capacity 8 | 8 8 8 8 Average Capacity 7 | 6 8 8 5 Most Carried 8 | . 5 8 6 Average Carried 4 | . 3 5 3 Final Capacity 8 | 8 8 8 5 Final Carried 4 | . 4 4 3 Class Distribution -------------------- 35% | Mutant 33% | Scientist-Mutant 30% | Scavenger-Mutant Dominant Class ---------------- Mutant | -10/Materials Scientist-Mutant | -9/Materials Mutant | -8/Materials Resources | -11 -10 -9 -8 ----------- Run | Yrd Mat Mat Mat Matter Collected 611 | 197 178 30 206 Remotely . | . . . . Salvage Created 818 | . 319 215 284 Parts 37 | . 19 6 12 Haulers Intercepted . | . . . . Recyclers Shooed 2 | . 1 . 1 Parts Field Recycled . | . . . . Retrieved Matter . | . . . . Parts Self-Destructed . | . . . . Prevented . | . . . . Parts Restored . | . . . . Kills | -11 -10 -9 -8 ------- Run | Yrd Mat Mat Mat Combat Hostiles Destroyed 14 | . 5 5 4 Guns 8 | . 5 3 . Cannons 4 | . . . 4 Classes Destroyed 6 | . 3 2 1 Worker 1 | . 1 . . Recycler 1 | . . . 1 Watcher 5 | . 3 1 1 Swarmer 2 | . . 2 . Grunt 9 | . 5 . 4 Sentry 3 | . . 3 . Best Kill Streak 7 | . 7 2 4 Combat Bots Only 3 | . 2 2 3 Max Kills in Single Turn 1 | . 1 1 1 Gunslinging . | . . . . Exploded . | . . . . Melee . | . . . . Uniques/NPCs Destroyed . | . . . . Combat | -11 -10 -9 -8 -------- Run | Yrd Mat Mat Mat Hostile Shots Fired 114 | . 30 45 39 Missed 38 | . 14 15 9 Hits 76 | . 16 30 30 Projectile 76 | . 16 30 30 Critical Strikes 1 | . 1 . . Damage Taken 998 | . 209 369 420 Core 232 | . 27 72 133 Absorbed by Shields . | . . . . Core Remaining (%) 90 | 100 89 82 . Volleys Fired 82 | . 27 27 28 Largest 2 | . 2 2 2 Hottest 115 | . 115 115 70 Shots Fired 163 | . 53 54 56 Gun 137 | . 53 54 30 Cannon 26 | . . . 26 Launcher . | . . . . Special . | . . . . Kinetic 83 | . 25 4 54 Thermal 80 | . 28 50 2 Explosive . | . . . . Electromagnetic . | . . . . Robot Hit Streak 10 | . 6 10 7 Robot Miss Streak 4 | . 2 4 4 Penetration Max . | . . . . Secondary Targets 2 | . 1 1 . Max Gunslinging Chain 1 | . 1 1 . Shots Hit Robots 103 | . 34 35 34 Core Hits 40 | . 18 6 16 Critical Kills 1 | . . . 1 Critical Parts Destroyed 1 | . 1 . . Critical Strikes 6 | . 2 2 2 Burn 3 | . 1 2 . Destroy 2 | . 1 . 1 Blast 1 | . . . 1 Melee Attacks . | . . . . Impact . | . . . . Slashing . | . . . . Piercing . | . . . . Sneak Attacks . | . . . . Combat Hostiles . | . . . . Follow-up Attacks . | . . . . Damage Inflicted 1604 | . 449 492 663 Guns 1179 | . 449 492 238 Cannons 425 | . . . 425 Explosions . | . . . . Melee . | . . . . Ramming . | . . . . Kinetic 888 | . 225 . 663 Thermal 716 | . 224 492 . Explosive . | . . . . Electromagnetic . | . . . . Impact . | . . . . Slashing . | . . . . Piercing . | . . . . Highest Corruption . | . . . . Average Corruption . | . . . . Corruption Purged . | . . . . Corruption Blocked . | . . . . Overload Shots . | . . . . Overflow Damage . | . . . . Projectiles . | . . . . Explosions . | . . . . Melee . | . . . . Knockbacks 8 | . . . 8 Impact . | . . . . Kinetic 8 | . . . 8 Secondary . | . . . . Self-Inflicted Damage . | . . . . Shots . | . . . . Rammed . | . . . . Targets Rammed . | . . . . Kicked . | . . . . Crushed . | . . . . Highest Temperature 186 | . 186 39 8 Average Temperature 36 | . 58 12 4 Received Heat Transfer 357 | . 132 99 126 Siege Activations . | . . . . Martial Activations . | . . . . Shielding Activations . | . . . . Robots Disrupted . | . . . . Combat Hostiles . | . . . . Robots Corrupted . | . . . . Combat Hostiles . | . . . . Parts Fried . | . . . . Impact Corruptions . | . . . . Robots Melted 2 | . . 2 . Combat Hostiles 2 | . . 2 . Parts Melted 4 | . 1 3 . Heat Transferred 2183 | . 740 1443 . Parts Sabotaged . | . . . . Parts Stolen . | . . . . Parts Stripped . | . . . . Power Chain Reactions . | . . . . Alert | -11 -10 -9 -8 ------- Run | Yrd Mat Mat Mat Maximum Alert Level . | . . . . Low Security (%) 100 | 100 100 100 100 Level 1 . | . . . . Level 2 . | . . . . Level 3 . | . . . . Level 4 . | . . . . Level 5 . | . . . . High Security . | . . . . Max Security . | . . . . Peak Influence 90 | . 89 90 80 Initial 31 | . . 14 31 Average 31 | . 39 25 42 Influence Increases 495 | . 156 215 124 Destroy 0b10 Robot/C 280 | . 100 100 80 Destroy 0b10 Robot/NC 35 | . 20 5 10 Destroy Leader 80 | . 36 32 12 Successful Hack 18 | . . 18 . Disable Machine 15 | . . . 15 Destroy Structure 7 | . . . 7 Lose Combat Pursuer 60 | . . 60 . Influence Decreases 460 | . 120 177 163 Entered New Map 65 | . . 22 43 Time Decay 345 | . 120 145 80 Lost Part 50 | . . 10 40 Squads Dispatched 2 | . 2 . . Investigation . | . . . . Extermination . | . . . . Reinforcement 2 | . 2 . . Assault . | . . . . Garrison . | . . . . Intercept . | . . . . Searches Triggered . | . . . . Construction Impeded . | . . . . Haulers Reinforced . | . . . . Active Scanning Responses . | . . . . Cargo Convoy Interrupts . | . . . . Stealth | -11 -10 -9 -8 --------- Run | Yrd Mat Mat Mat Distress Signals 2 | . 1 1 . Communications Jammed . | . . . . Distress Signals . | . . . . Times Spotted 34 | . 14 13 7 Peak Tracking Total 4 | . 4 4 2 Tactical Retreats 2 | . . 2 . Traps | -11 -10 -9 -8 ------- Run | Yrd Mat Mat Mat Traps Triggered . | . . . . Indirectly . | . . . . Trap Hack Attempts . | . . . . Triggered . | . . . . Disarmed . | . . . . Reprogrammed . | . . . . Reused . | . . . . Traps Extracted . | . . . . Installed . | . . . . Triggered . | . . . . Machines | -11 -10 -9 -8 ---------- Run | Yrd Mat Mat Mat Machines Disabled 1 | . . . 1 Max in Single Turn 1 | . . . 1 Machines Repaired . | . . . . Machines Dismantled . | . . . . Machines Sabotaged . | . . . . Overloaded Fab Kills . | . . . . Hacking | -11 -10 -9 -8 --------- Run | Yrd Mat Mat Mat Machines Accessed 7 | . 2 4 1 Terminals 4 | . 2 2 . Fabricators . | . . . . Repair Stations 1 | . . 1 . Recycling Units 1 | . . . 1 Scanalyzers 1 | . . 1 . Garrison Access . | . . . . Total Hacks 17 | . 4 11 2 Successful 7 | . . 6 1 Failed 10 | . 4 5 1 Catastrophic 4 | . 2 2 . Database Lockouts . | . . . . Manual 7 | . 4 3 . Terminals 7 | . 4 3 . Fabricators . | . . . . Repair Stations 2 | . . 2 . Recycling Units 2 | . . . 2 Scanalyzers 6 | . . 6 . Garrison Access . | . . . . Terminal Hacks . | . . . . Fabricator Hacks . | . . . . Repair Station Hacks 1 | . . 1 . Scan Component 1 | . . 1 . Recycling Unit Hacks 1 | . . . 1 Retrieve Components 1 | . . . 1 Scanalyzer 5 | . . 5 . Retrieve Study 5 | . . 5 . Garrison Access Hacks . | . . . . Unauthorized Hacks . | . . . . Terminals . | . . . . Fabricators . | . . . . Repair Stations . | . . . . Recycling Units . | . . . . Scanalyzers . | . . . . Garrison Access . | . . . . Data Cores Recovered . | . . . . Used . | . . . . Hacking Detections 6 | . 2 4 . Full Trace Events . | . . . . Feedback Events . | . . . . Feedback Blocked . | . . . . Robot Schematics Acquired . | . . . . Robots Built . | . . . . Authchips . | . . . . Time . | . . . . Total Robot Build Rating . | . . . . Part Schematics Acquired . | . . . . Parts Built . | . . . . Authchips . | . . . . Time . | . . . . Total Part Build Rating . | . . . . Part Studies Acquired 5 | . . 5 . Parts Repaired . | . . . . Time . | . . . . Parts Recycled . | . . . . Recycled Matter . | . . . . Retrieved Matter . | . . . . Retrieved Components 2 | . . . 2 Parts Scanalyzed . | . . . . Part Schematics Acquired . | . . . . Parts Damaged . | . . . . Bothacking | -11 -10 -9 -8 ------------ Run | Yrd Mat Mat Mat Used RIF Installer . | . . . . Robots Hacked . | . . . . Non-combat . | . . . . Combat . | . . . . Robot Hacks Applied . | . . . . Relay Couplers Released . | . . . . Fabnet Peak Effective % . | . . . . Robots Rewired . | . . . . Allies Hacked . | . . . . Hacks Repelled . | . . . . Allies | -11 -10 -9 -8 -------- Run | Yrd Mat Mat Mat Total Allies . | . . . . Largest Group . | . . . . Highest-Rated Group . | . . . . Highest-Rated Ally . | . . . . Total Orders . | . . . . Ally Attacks . | . . . . Total Damage . | . . . . Kills . | . . . . Allies Corrupted . | . . . . Allies Melted . | . . . . Intel | -11 -10 -9 -8 ------- Run | Yrd Mat Mat Mat Active Infowar (turns) . | . . . . Robot Analysis Total . | . . . . Derelict Logs Recovered . | . . . . Drone Launches . | . . . . Drone Recoveries . | . . . . Exploration | -11 -10 -9 -8 ------------- Run | Yrd Mat Mat Mat Turns Passed 1039 | 52 312 508 167 Spaces Moved 608 | 38 179 315 76 Core 5 | 3 . . 2 Treads . | . . . . Legs 557 | 35 179 315 28 Wheels . | . . . . Hover 22 | . . . 22 Flight 24 | . . . 24 Fastest Speed 29 | 50 120 105 29 Average Speed 109 | 114 120 111 75 Slowest Speed 275 | 120 120 120 275 Overloaded Moves . | . . . . Propulsion Burnouts . | . . . . Robots Hopped . | . . . . Potential Cave-ins . | . . . . Cave-ins Triggered . | . . . . Exploration Rate (%) 20 | 4 42 28 8 Regions Visited 3 Branch Regions . Pre-discovered Areas . | . . . . Known Exits Taken . | . . . . Unknown Exits Taken 3 | 1 1 1 . Scrap Searched . | . . . . Spaces Dug . | . . . . Terrain Destroyed 6 | . . . 6 Melee . | . . . . Projectile 6 | . . . 6 AOE . | . . . . Terrain Rammed . | . . . . Walls Destroyed . | . . . . Machines Disabled . | . . . . Actions | -11 -10 -9 -8 --------- Run | Yrd Mat Mat Mat Total 817 | 43 221 419 134 Wait 76 | . 8 64 4 Move 605 | 37 178 314 76 Hop . | . . . . Pick Up 12 | . 3 4 5 Fast Attach 11 | 6 1 . 4 Attach 6 | . . 2 4 Detach 4 | . . 1 3 Swap 5 | . 3 2 . Drop 16 | . 1 5 10 Fire 82 | . 27 27 28 Melee . | . . . . Ram . | . . . . Kick . | . . . . Crush . | . . . . Escape Stasis . | . . . . Rewire . | . . . . Trap . | . . . . Miscellaneous . | . . . . Route ------- -11/Scrapyard -10/Materials (discovered 2 exits: *Mat / [*Min]) -9/Materials (discovered 2 exits: *Mat / [*Min]) -8/Materials History --------- Turn | Location | Event 6 | -11/Scrapyard | Discovered new exit (range 16) 53 | -11/Scrapyard | Entered Materials 203 | -10/Materials | Discovered new exit (range 11) 339 | -10/Materials | Discovered new exit (range 11) 365 | -10/Materials | Entered another Materials area 365 | -9/Materials | Evolved 2 slots: Utility x2 367 | -9/Materials | Discovered new exit (range 14) 550 | -9/Materials | Build established: Scavenger-Mutant 762 | -9/Materials | Discovered new exit (range 12) 859 | -9/Materials | Build established: Scientist-Mutant 873 | -9/Materials | Entered another Materials area 873 | -8/Materials | Evolved 2 slots: Propulsion x1, Weapon x1 1040 | -8/Materials | Self-destructed Last Messages --------------- 01014_ Penetrated by Slug. 01016_ K-01 Serf collects debris. 01016_ H-55 Commando knocked back. 01017_ Slug penetrates Wall. 01017_ Ion Engine+ destroyed. 01018_ K-01 Serf collects debris. 01019_ H-55 Commando knocked back. 01021_ K-01 Serf collects debris. 01021_ Slug penetrates Wall. 01023_ K-01 Serf collects debris. 01030_ Slug penetrates Wall. 01030_ K-01 Serf collects debris. 01031_ U-05 Engineer builds a Wall. 01035_ Slug penetrates Door. 01035_ U-05 Engineer destroyed. 01035_ K-01 Serf collects debris. 01037_ U-05 Engineer builds a Wall. 01037_ Penetrated by Slug. 01038_ Imp. Aluminum Leg+ destroyed. 01039_ K-01 Serf collects debris. Map ----- +----------------------------------------------------+ | ?????????????????????????????????????????????????? | | ?????????????????????????????????????????????????? | | ?????????????????????????????????????????????????? | | ?????????????????????????????????????????????????? | | ?????????????????????????????????????????????????? | | ?????????????????????????????????????????????????? | | ?????????????????????????????????????????????????? | | ?????????????????????????????????????????????????? | | ?????????????????????????????????????????????????? | | ?????????????????????????????????????????????????? | | ?????????????????????????????????????????????????? | | ??????????????????????????????###????????????????? | | ????????????????????????????? #????????????????? | | ????????????????############# #????????????????? | | ???????????????? #????????????????? | | ???????????????? +????????????????? | | ?????????????? #????????????????? | | ??????????????# """ #????????????????? | | ??????????????# """ #????????????????? | | ???????????????? """% % #????????????????? | | ??????????????????%%% % """ #?? ? ??????????? | | ???????????????????? h%k """" # ???????????? | | ?????????????????????#=!! """" ; ??????????????? | | ?????????????????????# "" " #????????????????? | | ???????????????####### =[ " #????????????????? | | ???????????????# [ #==*@k #####????????????? | | ???????????????# # #????????????? | | ???????????????# # #????????????? | | ???????????????# # * #????????????? | | ???????????????# ; !%== #####????????????? | | ???????????????# ; !=== #????????????????? | | ?????????###???# #! === [[[#????????????????? | | ?????????# #######hu a [[ #????????????????? | | ?????????# [[ #????????????????? | | ?????????# %% % #????????????????? | | ?????????# u #????????????????? | | ?????????# #######;##+#######????????????????? | | ?????????## ????????## #???????????????????? | | ??????????#???????????# === #???????????????????? | | ??????????????????????# "[" #???????????????????? | | ??????????????????????# "Y" #???????????????????? | | ??????????????????????# """ #???????????????????? | | ??????????????????????# #???????????????????? | | ??????????????????????########???????????????????? | | ?????????????????????????????????????????????????? | | ?????????????????????????????????????????????????? | | ?????????????????????????????????????????????????? | | ?????????????????????????????????????????????????? | | ?????????????????????????????????????????????????? | | ?????????????????????????????????????????????????? | +----------------------------------------------------+ Best States ------------- Heat Dissipation 45 Energy Generation 12 Energy Capacity 250 Matter Stores 300 Matter Capacity 300 Sight Range 16 Terrain Scan Density 10 Evasion (%) 64 Item Schematics ----------------- None Robot Schematics ------------------ None Fabricated ------------ Nothing Repaired ---------- Nothing Studied --------- Imp. Aluminum Leg | -9/Materials | Hacked Aluminum Leg | -9/Materials | Hacked Med. Laser | -9/Materials | Hacked Ion Engine | -9/Materials | Hacked Particle Gun | -9/Materials | Hacked Alien Tech Used ----------------- None Achievements -------------- None Challenges ------------ None Game ------ Seed BlanketMetamassFlakker Manual? 0 Play Time 00:10:07 Cumulative 43.0 hours Start 2026.08.31 @ 00:38:46 End 2026.08.31 @ 00:46:50 Sessions 1 Manual Loads 0 Difficulty Rogue Special Mode None Game No. 65 Rogue 65 Adventurer 0 Explorer 0 Win Type - Total 0 Types 0/0/0/0/0/0/0/0/0/0 Lore% 31 Gallery% 31 Achievement% 29 Wizard Run 0 Options --------- Layout 1 ASCII 0 Keyboard 0 Movement Mouse Keybinds 0 Fullscreen 2 Font 24/Smallcaps Map View 50x35 Zoom Use 0% Tactical HUD 1 Map Filters NONE Filters NONE Steam 1 RUN: 0fd2b238-dc1a-496d-921c-11a539505fbc